fUSD/lending_fUSD_20240119
["ID","MTS","AMOUNT","RATE_DAILY","PERIOD"]
[312163825,1705674675443,-950.46,0.00023013,2]
[312163826,1705674675454,-500.0,0.00023013,2]
[312163827,1705674675464,-841.77,0.00023013,2]
[312163828,1705674675474,-1004.01,0.00023013,2]
[312163829,1705674675484,-511.72,0.00023013,2]
[312163830,1705674675496,-773.82,0.00023013,2]
[312163831,1705674675505,-500.0,0.00023013,2]
[312163832,1705674675514,-500.0,0.00023013,2]
[312163833,1705674675524,-500.0,0.00023013,2]
[312163834,1705674675534,-831.13,0.00023013,2]
[312163835,1705674675544,-807.35,0.00023013,2]
[312163836,1705674675555,-500.0,0.00023013,2]
[312163837,1705674675566,-500.0,0.00023013,2]
[312163838,1705674675578,-3109.38,0.00023013,2]
[312163839,1705674675590,-896.34,0.00023013,2]
[312163840,1705674675601,-687.96,0.00023013,2]
[312163841,1705674675612,-1114.15,0.00023013,2]
[312163842,1705674675622,-659.78,0.00023013,2]
[312163843,1705674675635,-758.37,0.00023013,2]
[312163844,1705674675645,-500.0,0.00023013,2]
[312163845,1705674675656,-570.22,0.00023013,2]
[312163846,1705674675666,-500.0,0.00023013,2]
[312163847,1705674675676,-500.0,0.00023013,2]
[312163848,1705674675687,-500.0,0.00023013,2]
[312163849,1705674675697,-755.62,0.00023013,2]
[312163850,1705674675707,-1088.69,0.00023013,2]
[312163851,1705674675717,-2162.24,0.00023013,2]
[312163852,1705674675728,-500.0,0.00023013,2]
[312163853,1705674675737,-500.0,0.00023013,2]
[312163854,1705674675747,-1062.76,0.00023013,2]
[312163855,1705674675757,-500.0,0.00023013,2]
[312163856,1705674675767,-612.29,0.00023013,2]
[312163857,1705674675777,-2396.2,0.00023013,2]
[312163858,1705674675787,-500.0,0.00023013,2]
[312163859,1705674675798,-516.5138261,0.00023013,2]
[312163860,1705674675808,-565.53,0.00023013,2]
[312163861,1705674675817,-668.85,0.00023013,2]
[312163862,1705674675827,-598.83,0.00023013,2]
[312163863,1705674675836,-508.81,0.00023013,2]
[312163864,1705674675846,-1080.49,0.00023013,2]
[312163865,1705674675856,-2041.51,0.00023013,2]
[312163866,1705674675866,-834.41,0.00023013,2]
[312163867,1705674675876,-604.66,0.00023013,2]
[312163868,1705674675886,-794.08,0.00023013,2]
[312163869,1705674675896,-500.0,0.00023013,2]
[312163870,1705674675906,-935.21,0.00023013,2]
[312163871,1705674675916,-942.04,0.00023013,2]
[312163872,1705674675926,-500.0,0.00023013,2]
[312163873,1705674675936,-1596.53,0.00023013,2]
[312163874,1705674675945,-992.82,0.00023013,2]
[312163875,1705674675955,-500.0,0.00023013,2]
[312163876,1705674675965,-500.0,0.00023013,2]
[312163877,1705674675975,-841.54,0.00023013,2]
[312163878,1705674675985,-500.0,0.00023013,2]
[312163879,1705674675997,-500.0,0.00023013,2]
[312163880,1705674676007,-1220.64,0.00023013,2]
[312163881,1705674676017,-907.37,0.00023013,2]
[312163882,1705674676027,-2116.41,0.00023013,2]
[312163883,1705674676037,-500.0,0.00023013,2]
[312163884,1705674676047,-500.0,0.00023013,2]
[312163885,1705674676057,-3104.05,0.00023013,2]
[312163886,1705674676067,-625.97,0.00023013,2]
[312163887,1705674676077,-1045.61,0.00023013,2]
[312163888,1705674676087,-500.0,0.00023013,2]
[312163889,1705674676096,-500.0,0.00023013,2]
[312163890,1705674676107,-500.0,0.00023013,2]
[312163891,1705674676116,-973.18,0.00023013,2]
[312163892,1705674676125,-1342.7,0.00023013,2]
[312163893,1705674676136,-500.0,0.00023013,2]
[312163894,1705674676146,-1590.89,0.00023013,2]
[312163895,1705674676156,-500.0,0.00023013,2]
[312163896,1705674676171,-774.58,0.00023013,2]
[312163897,1705674676181,-925.53,0.00023013,2]
[312163898,1705674676190,-854.66,0.00023013,2]
[312163899,1705674676200,-834.36,0.00023013,2]
[312163900,1705674676209,-500.0,0.00023013,2]
[312163901,1705674676219,-213.82,0.00023013,2]
[312163902,1705674676228,-1485.93,0.00023013,2]
[312163903,1705674676238,-1774.31,0.00023013,2]
[312163904,1705674676248,-500.0,0.00023013,2]
[312163905,1705674676258,-500.0,0.00023013,2]
[312163906,1705674676268,-2260.08,0.00023013,2]
[312163907,1705674676279,-584.48,0.00023013,2]
[312163908,1705674676289,-1527.06,0.00023013,2]
[312163909,1705674676299,-500.0,0.00023013,2]
[312163910,1705674676309,-648.29,0.00023013,2]
[312163911,1705674676319,-804.55,0.00023013,2]
[312163912,1705674676331,-1390.89,0.00023013,2]
[312163913,1705674676341,-1877.21,0.00023013,2]
[312163914,1705674676352,-500.0,0.00023013,2]
[312163915,1705674676362,-500.0,0.00023013,5]
[312163916,1705674676371,-900.94,0.00023013,2]
[312163917,1705674676381,-3022.81,0.00023013,2]
[312163918,1705674676391,-500.0,0.00023013,2]
[312163919,1705674676401,-1574.26,0.00023013,2]
[312163920,1705674676410,-500.0,0.00023013,2]
[312163921,1705674676420,-500.0,0.00023013,2]
[312163922,1705674676429,-6093.79,0.00023013,2]
[312163923,1705674676439,-500.0,0.00023013,2]
[312163924,1705674676450,-500.0,0.00023013,2]
[312163925,1705674676459,-1118.13,0.00023013,2]
[312163926,1705674676469,-652.23,0.00023013,2]
[312163927,1705674676479,-502.55,0.00023013,2]
[312163928,1705674676489,-1115.85,0.00023013,2]
[312163929,1705674676499,-321.08118847,0.00023013,2]
[312163930,1705674676509,-2563.91,0.00023013,2]
[312163931,1705674676519,-2341.41,0.00023013,2]
[312163932,1705674676530,-500.0,0.00023013,2]
[312163933,1705674676540,-810.7,0.00023013,2]
[312163934,1705674676550,-500.0,0.00023013,2]
[312163935,1705674676561,-2005.36,0.00023013,2]
[312163936,1705674676572,-602.05,0.00023013,2]
[312163937,1705674676583,-1103.28,0.00023013,2]
[312163938,1705674676593,-707.49,0.00023013,2]
[312163939,1705674676603,-500.0,0.00023013,2]
[312163940,1705674676614,-581.35,0.00023013,2]
[312163941,1705674676624,-500.0,0.00023013,2]
[312163942,1705674676634,-3924.46,0.00023013,2]
[312163943,1705674676644,-500.0,0.00023013,2]
[312163944,1705674676661,-500.0,0.00023013,2]
[312163945,1705674676673,-563.69,0.00023013,2]
[312163946,1705674676685,-500.0,0.00023013,2]
[312163947,1705674676695,-8501.89,0.00023013,2]
[312163948,1705674676705,-500.0,0.00023013,2]
[312163949,1705674676715,-527.48,0.00023013,2]
[312163950,1705674676725,-500.0,0.00023013,2]
[312163951,1705674676735,-500.0,0.00023013,2]
[312163952,1705674676746,-878.75,0.00023013,2]
[312163953,1705674676755,-500.0,0.00023013,2]
[312163954,1705674676765,-3091.25,0.00023013,2]
[312163955,1705674676775,-500.0,0.00023013,2]
[312163956,1705674676785,-10664.33,0.00023013,2]
[312163957,1705674676795,-1693.3,0.00023013,2]
[312163958,1705674676806,-500.0,0.00023013,2]
[312163959,1705674676816,-1585.15,0.00023013,2]
[312163960,1705674676826,-900.55,0.00023013,2]
[312163961,1705674676836,-1114.75,0.00023013,2]
[312163962,1705674676848,-1277.56,0.00023013,2]
[312163963,1705674676858,-991.98,0.00023013,2]
[312163964,1705674676868,-854.63,0.00023013,2]
[312163965,1705674676878,-533.58,0.00023013,2]
[312163966,1705674676887,-6410.9,0.00023013,2]
[312163967,1705674676897,-918.55,0.00023013,2]
[312163968,1705674676906,-5442.28,0.00023013,2]
[312163969,1705674676916,-500.0,0.00023013,2]
[312163970,1705674676925,-1784.06,0.00023013,2]
[312163971,1705674676935,-523.42,0.00023013,2]
[312163972,1705674676945,-875.49,0.00023013,2]
[312163973,1705674676955,-606.49,0.00023013,2]
[312163974,1705674676966,-1009.22,0.00023013,2]
[312163975,1705674676975,-693.07,0.00023013,2]
[312163976,1705674676985,-554.95,0.00023013,2]
[312163977,1705674676996,-2140.41,0.00023013,2]
[312163978,1705674677006,-511.36,0.00023013,2]
[312163979,1705674677017,-500.0,0.00023013,2]
[312163980,1705674677027,-500.0,0.00023013,2]
[312163981,1705674677037,-3585.07,0.00023013,2]
[312163982,1705674677047,-642.37,0.00023013,2]
[312163983,1705674677057,-2571.91,0.00023013,2]
[312163984,1705674677068,-713.94,0.00023013,2]
[312163985,1705674677078,-816.86,0.00023013,2]
[312163986,1705674677089,-1520.09,0.00023013,2]
[312163987,1705674677099,-2957.01,0.00023013,2]
[312163988,1705674677109,-3111.27,0.00023013,2]
[312163989,1705674677124,-1247.06,0.00023013,2]
[312163990,1705674677139,-2470.98,0.00023013,2]
[312163991,1705674677155,-877.17,0.00023013,2]
[312163992,1705674677168,-16108.31,0.00023013,2]
[312163993,1705674677179,-1420.38,0.00023013,2]
[312163994,1705674677194,-500.0,0.00023013,2]
[312163995,1705674677207,-5889.58,0.00023013,2]
[312163996,1705674677221,-500.0,0.00023013,2]
[312163997,1705674677235,-1031.15,0.00023013,2]
[312163998,1705674677253,-24836.08,0.00023013,2]
[312163999,1705674677267,-500.0,0.00023013,2]
[312164000,1705674677280,-500.0,0.00023013,2]
[312164001,1705674677291,-525.39,0.00023013,2]
[312164002,1705674677306,-500.0,0.00023013,2]
[312164003,1705674677319,-1007.94,0.00023013,2]
[312164004,1705674677333,-500.0,0.00023013,2]
[312164005,1705674677346,-12531.28,0.00023013,2]
[312164006,1705674677360,-500.0,0.00023013,2]
[312164007,1705674677374,-1705.83,0.00023013,2]
[312164008,1705674677385,-557.18,0.00023013,2]
[312164009,1705674677396,-621.8,0.00023013,2]
[312164010,1705674677412,-500.0,0.00023013,2]
[312164011,1705674677425,-652.5,0.00023013,2]
[312164012,1705674677440,-1703.36,0.00023013,2]
[312164013,1705674677454,-1441.36,0.00023013,2]
[312164014,1705674677467,-727.24,0.00023013,2]
[312164015,1705674677480,-2408.12,0.00023013,2]
[312164016,1705674677497,-500.0,0.00023013,2]
[312164017,1705674677510,-1152.24,0.00023013,2]
[312164018,1705674677525,-1113.26,0.00023013,2]
[312164019,1705674677540,-500.0,0.00023013,2]
[312164020,1705674677554,-1962.06,0.00023013,2]
[312164021,1705674677569,-573.79,0.00023013,2]
[312164022,1705674677582,-11423.78,0.00023013,2]
[312164023,1705674677593,-4066.04,0.00023013,2]
[312164024,1705674677604,-522.52,0.00023013,2]
[312164025,1705674677616,-543.31807973,0.00023013,2]
[312164026,1705674677630,-2220.98,0.00023013,2]
[312164027,1705674677647,-847.61,0.00023013,2]
[312164028,1705674677659,-942.58,0.00023013,2]
[312164029,1705674677676,-6566.67,0.00023013,2]
[312164030,1705674677689,-934.08,0.00023013,2]
[312164031,1705674677700,-814.47,0.00023013,2]
[312164032,1705674677711,-800.9,0.00023013,2]
[312164033,1705674677727,-823.98,0.00023013,2]
[312164034,1705674677739,-1493.53,0.00023013,2]
[312164035,1705674677753,-500.0,0.00023013,2]
[312164036,1705674677765,-500.0,0.00023013,2]
[312164037,1705674677777,-509.76,0.00023013,2]
[312164038,1705674677790,-1278.96,0.00023013,2]
[312164039,1705674677803,-3770.64,0.00023013,2]
[312164040,1705674677821,-956.94,0.00023013,2]
[312164041,1705674677835,-1348.79,0.00023013,2]
[312164042,1705674677851,-1356.35,0.00023013,2]
[312164043,1705674677866,-2516.93,0.00023013,2]
[312164044,1705674677881,-773.29,0.00023013,2]
[312164045,1705674677896,-608.82,0.00023013,2]
[312164046,1705674677911,-500.0,0.00023013,2]
[312164047,1705674677925,-2842.24,0.00023013,2]
[312164048,1705674677940,-500.0,0.00023013,2]
[312164049,1705674677953,-602.48,0.00023013,2]
[312164050,1705674677968,-500.0,0.00023013,2]
[312164051,1705674677982,-2750.19,0.00023013,2]
[312164052,1705674677997,-1084.04,0.00023013,2]
[312164053,1705674678010,-624.79,0.00023013,2]
[312164054,1705674678024,-863.67,0.00023013,2]
[312164055,1705674678037,-977.84,0.00023013,2]
[312164056,1705674678049,-1392.15,0.00023013,2]
[312164057,1705674678063,-511.75,0.00023013,2]
[312164058,1705674678077,-816.57,0.00023013,2]
[312164059,1705674678090,-564.75,0.00023013,2]
[312164060,1705674678103,-1716.1,0.00023013,2]
[312164061,1705674678117,-1306.13,0.00023013,2]
[312164062,1705674678130,-1125.65,0.00023013,2]
[312164063,1705674678142,-1422.11,0.00023013,2]
[312164064,1705674678156,-1831.27,0.00023013,2]
[312164065,1705674678169,-500.0,0.00023013,2]
[312164066,1705674678182,-894.49,0.00023013,2]
[312164067,1705674678196,-717.76,0.00023013,2]
[312164068,1705674678208,-611.36,0.00023013,2]
[312164069,1705674678221,-1447.39,0.00023013,2]
[312164070,1705674678234,-2948.08,0.00023013,2]
[312164071,1705674678247,-717.83,0.00023013,2]
[312164072,1705674678259,-695.07,0.00023013,2]
[312164073,1705674678272,-754.58,0.00023013,2]
[312164074,1705674678284,-3021.97,0.00023013,2]
[312164075,1705674678296,-3427.8,0.00023013,2]
[312164076,1705674678308,-16488.48,0.00023013,2]
[312164077,1705674678319,-2131.71,0.00023013,2]
[312164078,1705674678331,-500.0,0.00023013,2]
[312164079,1705674678344,-500.0,0.00023013,2]
[312164080,1705674678357,-1009.99,0.00023013,2]
[312164081,1705674678369,-425.47708029,0.00023013,2]
[312164082,1705674679278,-1040.42,0.00022465,2]
[312164083,1705674679291,-561.95,0.00022739,2]
[312164084,1705674679304,-530.52291971,0.00023013,2]
[312164085,1705674679318,-1506.86,0.00023013,2]
[312164086,1705674679330,-500.0,0.00023013,2]
[312164087,1705674679343,-500.0,0.00023013,2]
[312164088,1705674679355,-1637.62,0.00023013,2]
[312164089,1705674679367,-1201.83,0.00023013,2]
[312164090,1705674679379,-637.98,0.00023013,2]
[312164091,1705674679391,-3998.36,0.00023013,2]
[312164092,1705674679404,-1400.83,0.00023013,2]
[312164093,1705674679416,-1599.66,0.00023013,2]
[312164094,1705674679428,-500.0,0.00023013,2]
[312164095,1705674679441,-1422.3,0.00023013,2]
[312164096,1705674679453,-924.53,0.00023013,2]
[312164097,1705674679465,-17849.03,0.00023013,2]
[312164098,1705674679479,-995.96,0.00023013,2]
[312164099,1705674679492,-905.92,0.00023013,2]
[312164100,1705674679507,-3330.51,0.00023013,2]
[312164101,1705674679520,-1401.15,0.00023013,2]
[312164102,1705674679532,-500.0,0.00023013,2]
[312164103,1705674679545,-500.0,0.00023013,2]
[312164104,1705674679557,-1383.55,0.00023013,2]
[312164105,1705674679570,-1506.65,0.00023013,2]
[312164106,1705674679582,-1264.66,0.00023013,2]
[312164107,1705674679595,-500.0,0.00023013,2]
[312164108,1705674679607,-6741.56,0.00023013,2]
[312164109,1705674679619,-500.0,0.00023013,2]
[312164110,1705674679632,-500.0,0.00023013,2]
[312164111,1705674679644,-500.0,0.00023013,2]
[312164112,1705674679657,-604.37,0.00023013,2]
[312164113,1705674679669,-1687.35,0.00023013,2]
[312164114,1705674679682,-605.05,0.00023013,2]
[312164115,1705674679695,-516.56,0.00023013,2]
[312164116,1705674679707,-1288.35,0.00023013,2]
[312164117,1705674679719,-500.0,0.00023013,2]
[312164118,1705674679731,-5391.31,0.00023013,2]
[312164119,1705674679746,-500.0,0.00023013,2]
[312164120,1705674679790,-824.94,0.00023013,2]
[312164121,1705674679803,-500.0,0.00023013,2]
[312164122,1705674679816,-654.71,0.00023013,2]
[312164123,1705674679828,-1647.86,0.00023013,2]
[312164124,1705674679840,-1662.1,0.00023013,2]
[312164125,1705674679852,-1467.43,0.00023013,2]
[312164126,1705674679864,-500.0,0.00023013,2]
[312164127,1705674679875,-541.73,0.00023013,2]
[312164128,1705674679887,-2497.65,0.00023013,2]
[312164129,1705674679899,-827.16,0.00023013,2]
[312164130,1705674679912,-617.14,0.00023013,5]
[312164131,1705674679924,-798.92,0.00023013,2]
[312164132,1705674679936,-1554.52,0.00023013,2]
[312164133,1705674679948,-796.96,0.00023013,2]
[312164134,1705674679960,-1197.62,0.00023013,2]
[312164135,1705674679972,-538.86,0.00023013,2]
[312164136,1705674679983,-500.0,0.00023013,2]
[312164137,1705674679995,-1671.21,0.00023013,2]
[312164138,1705674680006,-1262.62,0.00023013,2]
[312164139,1705674680018,-500.0,0.00023013,2]
[312164140,1705674680031,-500.0,0.00023013,2]
[312164141,1705674680043,-584.89343774,0.00023013,2]
[312164142,1705674680056,-500.0,0.00023013,2]
[312164143,1705674680069,-867.33,0.00023013,2]
[312164144,1705674680082,-1641.24,0.00023013,2]
[312164145,1705674680095,-636.92211625,0.00023013,2]
[312164146,1705674680107,-3333.86,0.00023013,2]
[312164147,1705674680118,-160.66,0.00023014,2]
[312164148,1705674680131,-221.43378721,0.00023039,2]
[312164149,1705674680148,-376.22518155,0.00023083,7]
[312164150,1705674680161,-157.44,0.00023098,2]
[312164151,1705674680175,-250.0,0.000231,2]
[312164152,1705674680188,-1500.0,0.000231,2]
[312164153,1705674680202,-151.39793632,0.0002311,2]
[312164154,1705674680215,-166.91230757,0.00023119,2]
[312164155,1705674680229,-18613.64350954,0.00023137,2]
[312164156,1705674680246,-500.0,0.00023165,2]
[312164157,1705674680259,-207.0,0.00023176,5]
[312164158,1705674680272,-1065.00045432,0.00023187,2]
[312164159,1705674680285,-1000.0,0.000232,2]
[312164160,1705674680298,-500.0,0.00023226,2]
[312164161,1705674680312,-1356.59,0.00023245,2]
[312164162,1705674680325,-151.39793632,0.00023285,2]
[312164163,1705674680338,-150.0,0.00023286,2]
[312164164,1705674680350,-500.0,0.00023287,2]
[312164165,1705674680363,-500.0,0.00023287,2]
[312164166,1705674680376,-707.27,0.00023287,2]
[312164167,1705674680389,-500.0,0.00023287,2]
[312164168,1705674680403,-500.0,0.00023287,2]
[312164169,1705674680416,-902.43,0.00023287,2]
[312164170,1705674680429,-500.0,0.00023287,2]
[312164171,1705674680442,-500.0,0.00023287,2]
[312164172,1705674680455,-500.0,0.00023287,2]
[312164173,1705674680468,-512.07,0.00023287,2]
[312164174,1705674680481,-543.02,0.00023287,2]
[312164175,1705674680494,-785.51,0.00023287,2]
[312164176,1705674680507,-500.0,0.00023287,2]
[312164177,1705674680521,-500.0,0.00023287,2]
[312164178,1705674680533,-500.0,0.00023287,2]
[312164179,1705674680547,-179.825564,0.00023287,2]
[312164180,1705674680559,-500.0,0.00023287,2]
[312164181,1705674680573,-500.0,0.00023287,2]
[312164182,1705674680586,-500.0,0.00023287,2]
[312164183,1705674680599,-500.0,0.00023287,2]
[312164184,1705674680612,-500.0,0.00023287,2]
[312164185,1705674680625,-521.03,0.00023287,2]
[312164186,1705674680638,-500.0,0.00023287,2]
[312164187,1705674680651,-500.0,0.00023287,2]
[312164188,1705674680665,-500.0,0.00023287,2]
[312164189,1705674680678,-571.67,0.00023287,2]
[312164190,1705674680691,-500.0,0.00023287,2]
[312164191,1705674680703,-500.0,0.00023287,2]
[312164192,1705674680717,-500.0,0.00023287,2]
[312164193,1705674680729,-500.0,0.00023287,2]
[312164194,1705674680742,-192.5439453,0.00023287,2]
[312164195,1705674680757,-500.0,0.00023287,2]
[312164196,1705674680770,-528.35,0.00023287,2]
[312164197,1705674680782,-500.0,0.00023287,2]
[312164198,1705674680795,-1000.0,0.00023287,10]
[312164199,1705674680808,-500.0,0.00023287,2]
[312164200,1705674680822,-500.0,0.00023287,2]
[312164201,1705674680835,-500.0,0.00023287,2]
[312164202,1705674680848,-500.0,0.00023287,2]
[312164203,1705674680861,-500.0,0.00023287,2]
[312164204,1705674680873,-500.0,0.00023287,2]
[312164205,1705674680886,-500.0,0.00023287,2]
[312164206,1705674680899,-500.0,0.00023287,2]
[312164207,1705674680911,-500.0,0.00023287,2]
[312164208,1705674681483,-500.0,0.00023287,2]
[312164209,1705674681508,-803.94,0.00023287,2]
[312164210,1705674681519,-500.0,0.00023287,2]
[312164211,1705674681530,-500.0,0.00023287,2]
[312164212,1705674681540,-500.0,0.00023287,2]
[312164213,1705674681550,-500.0,0.00023287,2]
[312164214,1705674681561,-852.68,0.00023287,2]
[312164215,1705674681571,-500.0,0.00023287,2]
[312164216,1705674681582,-500.0,0.00023287,2]
[312164217,1705674681592,-500.0,0.00023287,2]
[312164218,1705674681603,-500.0,0.00023287,2]
[312164219,1705674681613,-500.0,0.00023287,2]
[312164220,1705674681624,-500.0,0.00023287,2]
[312164221,1705674681634,-500.0,0.00023287,2]
[312164222,1705674681644,-500.0,0.00023287,2]
[312164223,1705674681657,-500.0,0.00023287,2]
[312164224,1705674681667,-506.14,0.00023287,2]
[312164225,1705674681679,-1006.1,0.00023287,2]
[312164226,1705674681690,-556.1,0.00023287,2]
[312164227,1705674681700,-500.0,0.00023287,2]
[312164228,1705674681710,-500.0,0.00023287,2]
[312164229,1705674681720,-500.0,0.00023287,2]
[312164230,1705674681732,-500.0,0.00023287,2]
[312164231,1705674681742,-500.0,0.00023287,2]
[312164232,1705674681754,-500.0,0.00023287,2]
[312164233,1705674681764,-500.0,0.00023287,2]
[312164234,1705674681775,-550.99,0.00023287,2]
[312164235,1705674681786,-500.0,0.00023287,2]
[312164236,1705674681796,-566.41,0.00023287,2]
[312164237,1705674681807,-500.0,0.00023287,2]
[312164238,1705674681817,-500.0,0.00023287,2]
[312164239,1705674681828,-500.0,0.00023287,2]
[312164240,1705674681838,-666.97,0.00023287,2]
[312164241,1705674681848,-756.54,0.00023287,2]
[312164242,1705674681859,-500.0,0.00023287,2]
[312164243,1705674681869,-864.28,0.00023287,2]
[312164244,1705674681879,-733.43,0.00023287,2]
[312164245,1705674681889,-500.0,0.00023287,2]
[312164246,1705674681898,-894.89,0.00023287,2]
[312164247,1705674681909,-640.01,0.00023287,2]
[312164248,1705674681919,-500.0,0.00023287,2]
[312164249,1705674681929,-500.0,0.00023287,2]
[312164250,1705674681939,-803.93,0.00023287,2]
[312164251,1705674681951,-1124.29,0.00023287,2]
[312164252,1705674681961,-500.0,0.00023287,2]
[312164253,1705674681971,-500.0,0.00023287,2]
[312164254,1705674681981,-500.0,0.00023287,2]
[312164255,1705674681992,-500.0,0.00023287,2]
[312164256,1705674682003,-500.0,0.00023287,2]
[312164257,1705674682014,-500.0,0.00023287,2]
[312164258,1705674682024,-555.71,0.00023287,2]
[312164259,1705674682034,-500.0,0.00023287,2]
[312164260,1705674682044,-557.11,0.00023287,2]
[312164261,1705674682054,-1239.37,0.00023287,2]
[312164262,1705674682064,-500.0,0.00023287,2]
[312164263,1705674682073,-500.0,0.00023287,2]
[312164264,1705674682083,-500.0,0.00023287,2]
[312164265,1705674682093,-518.9,0.00023287,2]
[312164266,1705674682103,-500.0,0.00023287,2]
[312164267,1705674682113,-500.0,0.00023287,2]
[312164268,1705674682123,-500.0,0.00023287,2]
[312164269,1705674682134,-500.0,0.00023287,2]
[312164270,1705674682143,-500.0,0.00023287,2]
[312164271,1705674682154,-500.0,0.00023287,2]
[312164272,1705674682164,-500.0,0.00023287,2]
[312164273,1705674682175,-500.0,0.00023287,2]
[312164274,1705674682184,-500.0,0.00023287,2]
[312164275,1705674682194,-928.59,0.00023287,2]
[312164276,1705674682204,-616.25780795,0.00023287,2]
[312164277,1705674682214,-541.16,0.00023287,2]
[312164278,1705674682224,-500.0,0.00023287,2]
[312164279,1705674682234,-1265.34,0.00023287,2]
[312164280,1705674682243,-500.0,0.00023287,2]
[312164281,1705674682254,-608.78,0.00023287,2]
[312164282,1705674682265,-514.65,0.00023287,2]
[312164283,1705674682275,-552.53,0.00023287,2]
[312164284,1705674682286,-500.0,0.00023287,2]
[312164285,1705674682296,-500.0,0.00023287,2]
[312164286,1705674682306,-500.0,0.00023287,2]
[312164287,1705674682316,-847.01,0.00023287,2]
[312164288,1705674682326,-500.0,0.00023287,2]
[312164289,1705674682335,-500.0,0.00023287,2]
[312164290,1705674682345,-500.0,0.00023287,2]
[312164291,1705674682355,-500.0,0.00023287,2]
[312164292,1705674682366,-535.98,0.00023287,2]
[312164293,1705674682375,-500.0,0.00023287,2]
[312164294,1705674682385,-558.76,0.00023287,2]
[312164295,1705674682395,-500.0,0.00023287,2]
[312164296,1705674682405,-500.0,0.00023287,2]
[312164297,1705674682416,-886.82,0.00023287,2]
[312164298,1705674682426,-500.0,0.00023287,2]
[312164299,1705674682436,-500.0,0.00023287,2]
[312164300,1705674682446,-651.62,0.00023287,2]
[312164301,1705674682457,-500.0,0.00023287,2]
[312164302,1705674682467,-869.62,0.00023287,2]
[312164303,1705674682478,-500.0,0.00023287,2]
[312164304,1705674682488,-766.07,0.00023287,2]
[312164305,1705674682501,-500.0,0.00023287,2]
[312164306,1705674682512,-271.15215589,0.00023287,2]
[312164307,1705674682522,-506.13,0.00023287,2]
[312164308,1705674682532,-588.85,0.00023287,2]
[312164309,1705674682543,-500.0,0.00023287,2]
[312164310,1705674682553,-572.98,0.00023287,2]
[312164311,1705674682563,-517.27,0.00023287,2]
[312164312,1705674682573,-715.18,0.00023287,2]
[312164313,1705674682583,-500.0,0.00023287,2]
[312164314,1705674682593,-630.94,0.00023287,2]
[312164315,1705674682604,-500.0,0.00023287,2]
[312164316,1705674682615,-847.73,0.00023287,2]
[312164317,1705674682626,-1237.47,0.00023287,2]
[312164318,1705674682639,-717.44,0.00023287,2]
[312164319,1705674682650,-500.0,0.00023287,2]
[312164320,1705674682660,-500.0,0.00023287,2]
[312164321,1705674682671,-512.98,0.00023287,2]
[312164322,1705674682682,-500.0,0.00023287,2]
[312164323,1705674682692,-500.0,0.00023287,2]
[312164324,1705674682703,-500.0,0.00023287,2]